Cogmind - Beta 10.2 @@@ ROGUE MODE // 2021.07.18 @ 21:42:20 Player: Demise Result: Self-destructed Performance ------------- Evolutions (3) 1500 Regions Visited (8) 1600 Robots Destroyed (87) 435 Value Destroyed (2040) 2040 Prototype IDs (31) 620 Alien Tech Used (0) 0 Bonus (635) 635 TOTAL SCORE: 6830 Bonus ------- Follower Combat Kills 367 Aligned with FarCom 300 Friendly Fire -32 Cogmind --------- Core Integrity 665/700 Matter 82/300 Energy 310/310 System Corruption 3% Temperature Cool (0) Movement Treading (225) Ox4 Location -7/Factory Parts ------- > --- POWER (1) -------- Reinforced Fission Core > --- PROPULSION (2) --- Advanced Treads > --- UTILITY (8) ------ Large Storage Unit High-capacity Storage Unit High-capacity Storage Unit Advanced Sensor Array Hacking Suite > --- WEAPON (2) ------- Mini Grenade Launcher > --- INVENTORY (26) --- Makeshift Power Source Makeshift Power Source Advanced Myomer Leg Advanced Myomer Leg Combat Antigrav System Flying Fortress v7 Gravity Neutralizing Apparatus Improved Target Analyzer Armor Integrity Analyzer Advanced Transmission Jammer Advanced Component Analysis Suite Long-range Tractor Beam Improved Trap Extractor Supersonic Drone Bay (1/1) AS-neutralizer No. 17b Latent Energy Streamer 8R-AWN's Boregun 8R-AWN's Boregun Proton Missile Launcher Mini Grenade Launcher Scythe Deploy-a-Sentry Peak State ------------ > --- POWER ------------ Reinforced Fission Core > --- PROPULSION ------- Advanced Myomer Leg Advanced Myomer Leg > --- UTILITY ---------- Disposable Heat Sink Large Storage Unit High-capacity Storage Unit High-capacity Storage Unit Advanced Terrain Scanner Layered Light Armor Plating > --- WEAPON ----------- Heavy Assault Rifle Scythe > --- INVENTORY -------- Makeshift Power Source Makeshift Power Source Combat Antigrav System Flying Fortress v7 Gravity Neutralizing Apparatus Improved Target Analyzer Advanced Transmission Jammer Hacking Suite Advanced Component Analysis Suite System Purifier Long-range Tractor Beam Supersonic Drone Bay AS-neutralizer No. 17b Latent Energy Streamer 8R-AWN's Boregun 8R-AWN's Boregun Mini Grenade Launcher Mini Grenade Launcher Deploy-a-Sentry [Rating: 53] Favorites ----------- Power Reinforced Fission Core Engine Light Angular Momentum Engine Power Core Reinforced Fission Core Propulsion Light Treads Treads Light Treads Leg Advanced Myomer Leg Utility Large Storage Unit Device Advanced Sensor Array Storage Large Storage Unit Processor Signal Interpreter Hackware Hacking Suite Protection Hardened Medium Armor Plating Weapon Heavy Assault Rifle Energy Gun Shock Rifle Ballistic Gun Heavy Assault Rifle Launcher Mini Grenade Launcher Special Weapon Mining Laser Slashing Weapon Scythe Build | -11 -10 -10 -9 -9 -9 -8 -8 -7 ------- Run | Scr Mat Min Mat Min Exi Min Mat Fac Slots Evolved 6 | . . . 2 . . . 2 2 Power . | . . . . . . . . . Propulsion . | . . . . . . . . . Utility 6 | . . . 2 . . . 2 2 Weapon . | . . . . . . . . . Parts Attached 109 | 4 10 5 12 2 29 6 28 13 Power 7 | . 3 1 2 . 1 . . . Engine 2 | . 1 . 1 . . . . . Core 5 | . 2 1 1 . 1 . . . Reactor . | . . . . . . . . . Propulsion 20 | 2 2 2 2 . 4 . 8 . Treads 18 | 2 2 2 2 . 4 . 6 . Leg 2 | . . . . . . . 2 . Wheel . | . . . . . . . . . Hover . | . . . . . . . . . Flight . | . . . . . . . . . Utility 37 | . 3 . 3 . 14 2 10 5 Device 16 | . . . . . 6 1 6 3 Storage 9 | . 2 . 1 . 5 1 . . Processor 2 | . 1 . . . . . 1 . Hackware 2 | . . . . . . . . 2 Protection 8 | . . . 2 . 3 . 3 . Artifact . | . . . . . . . . . Weapon 45 | 2 2 2 5 2 10 4 10 8 Energy Gun 2 | . . . . . . 1 1 . Energy Cannon . | . . . . . . . . . Ballistic Gun 24 | 2 2 1 4 1 5 2 6 1 Ballistic Cannon . | . . . . . . . . . Launcher 11 | . . 1 . 1 2 1 2 4 Special Weapon 1 | . . . 1 . . . . . Impact Weapon . | . . . . . . . . . Slashing Weapon 7 | . . . . . 3 . 1 3 Piercing Weapon . | . . . . . . . . . Special Melee Weapon . | . . . . . . . . . Unidentified Prototypes 3 | . . . . . 3 . . . Parts Lost 17 | . . . . . 5 . 5 7 Power 1 | . . . . . 1 . . . Propulsion 5 | . . . . . 2 . 2 1 Utility 6 | . . . . . 2 . . 4 Weapon 5 | . . . . . . . 3 2 Highest Loss Streak 4 | . . . . . 2 . 3 4 Average Slot Usage (%) 97 | . 95 100 97 100 94 99 97 95 Engine 3 | . 3 . 3 11 4 . . . Core 7 | . 10 14 7 . 5 11 9 7 Treads 22 | . 28 28 21 22 22 22 15 15 Device 2 | . . . . . 2 3 10 11 Storage 23 | . 11 14 20 22 26 39 27 23 Processor 6 | . 12 14 11 11 1 . 1 5 Protection 6 | . . . 10 11 9 . 13 6 Ballistic Gun 21 | . 28 27 21 21 19 21 17 8 Naked Turns . | . . . . . . . . . Heaviest Build 125 | 4 25 28 55 55 99 123 125 115 Greatest Support 60 | 20 40 40 40 40 40 40 60 42 Greatest Overweight (x) 5 | 1 . . 1 1 2 3 5 2 Average Overweight (x) 1 | . . . . 1 1 2 1 2 Largest Inventory Capacity 32 | 4 10 10 16 16 26 32 26 26 Average Capacity 16 | 4 5 10 15 16 18 26 26 26 Most Carried 26 | 4 8 10 16 16 26 26 26 26 Average Carried 16 | 3 5 9 13 16 16 26 25 25 Final Capacity 26 | 4 10 10 16 16 26 26 26 26 Final Carried 26 | 4 8 10 16 16 26 26 26 25 Class Distribution -------------------- 36% | Mutant 36% | Scavenger-Mutant 26% | Hauler-Mutant Dominant Class ---------------- Mutant | -10/Materials Mutant | -10/Mines Mutant | -9/Materials Scavenger-Mutant | -9/Mines Scavenger-Mutant | -9/Exiles Hauler-Mutant | -8/Mines Hauler-Mutant | -8/Materials Hauler-Mutant | -7/Factory Resources | -11 -10 -10 -9 -9 -9 -8 -8 -7 ----------- Run | Scr Mat Min Mat Min Exi Min Mat Fac Matter Collected 2631 | 318 362 190 328 101 648 228 456 . Remotely . | . . . . . . . . . Salvage Created 3048 | 189 691 185 292 181 458 374 543 135 Parts 227 | 11 36 10 22 11 61 33 36 7 Haulers Intercepted 5 | . 1 . 2 . . . 1 1 Recyclers Shooed . | . . . . . . . . . Parts Field Recycled . | . . . . . . . . . Retrieved Matter . | . . . . . . . . . Parts Self-Destructed . | . . . . . . . . . Prevented . | . . . . . . . . . Kills | -11 -10 -10 -9 -9 -9 -8 -8 -7 ------- Run | Scr Mat Min Mat Min Exi Min Mat Fac Combat Hostiles Destroyed 52 | . 11 5 5 7 3 9 8 4 Melee 2 | . . . . . 1 . 1 . Guns 35 | . 11 2 5 5 . 5 7 . AOE 15 | . . 3 . 2 2 4 . 4 Classes Destroyed 16 | 2 5 1 2 1 2 1 2 . Worker 5 | . 1 . . 1 . 2 1 . Builder 2 | . . . 1 . . 1 . . Tunneler 8 | 4 1 . 1 . . 1 . 1 Hauler 5 | . 1 . 2 . . . 1 1 Recycler 2 | 1 1 . . . . . . . Mechanic 1 | . . 1 . . . . . . Operator 2 | . 1 . 1 . . . . . Turret 1 | . . . . . 1 . . . Watcher 3 | . 2 . . . . . 1 . Swarmer 9 | . . . 3 3 . 3 . . Grunt 31 | . 11 5 2 3 . 4 2 4 Duelist 1 | . . . . . . . 1 . Sentry 4 | . . . . . . . 4 . Hunter 3 | . . . . . . 2 1 . Zionite 7 | . . . . . 7 . . . Assembled 3 | . . . . 1 2 . . . Best Kill Streak 5 | 3 2 3 2 3 5 5 3 4 Combat Bots Only 4 | . 2 3 2 3 2 4 3 2 Max Kills in Single Turn 4 | 1 2 2 1 2 2 4 1 2 Gunslinging . | . . . . . . . . . Exploded 3 | . . 2 . 2 2 3 . 2 Melee 1 | . . . . . 1 . 1 . Uniques/NPCs Destroyed 4 | . . . . . 4 . . . 8R-AWN (-9/Exiles) EX-BIN (-9/Exiles) EX-DEC (-9/Exiles) EX-HEX (-9/Exiles) Combat | -11 -10 -10 -9 -9 -9 -8 -8 -7 -------- Run | Scr Mat Min Mat Min Exi Min Mat Fac Damage Taken 4333 | . 408 179 185 99 1407 352 961 742 Core 481 | . 43 25 . . 213 17 148 35 Absorbed by Shields . | . . . . . . . . . Core Remaining (%) 71 | 100 . 72 . . . 42 73 . Volleys Fired 239 | 13 51 14 34 8 47 28 34 10 Largest 2 | 2 2 2 2 2 2 2 2 2 Hottest 100 | 40 40 40 100 46 46 73 73 46 Shots Fired 442 | 26 102 25 66 15 80 53 64 11 Gun 409 | 26 102 22 65 14 67 50 61 2 Cannon . | . . . . . . . . . Launcher 32 | . . 3 . 1 13 3 3 9 Special 1 | . . . 1 . . . . . Kinetic 402 | 26 102 22 65 14 67 46 58 2 Thermal 1 | . . . 1 . . . . . Explosive 32 | . . 3 . 1 13 3 3 9 Electromagnetic 7 | . . . . . . 4 3 . Robot Hit Streak 20 | 7 20 20 10 7 7 10 11 5 Robot Miss Streak 7 | 3 7 1 5 1 4 4 2 . Penetration Max . | . . . . . . . . . Secondary Targets 2 | . 1 . . . . . 1 . Max Gunslinging Chain 1 | . 1 . . . . . 1 . Shots Hit Robots 343 | 17 73 21 38 10 90 37 47 10 Core Hits 178 | 6 36 13 20 9 37 20 22 15 Critical Hits 5 | . 1 . . . 4 . . . Critical Kills 1 | . 1 . . . . . . . Critical Parts Destroyed 1 | . . . . . 1 . . . Melee Attacks 83 | . . . . . 65 . 2 16 Impact . | . . . . . . . . . Slashing 83 | . . . . . 65 . 2 16 Piercing . | . . . . . . . . . Sneak Attacks . | . . . . . . . . . Combat Hostiles . | . . . . . . . . . Follow-up Attacks 7 | . . . . . 7 . . . Damage Inflicted 8130 | 212 992 526 613 382 2777 852 845 931 Guns 4176 | 212 992 256 608 157 614 572 727 38 Cannons . | . . . . . . . . . Explosions 2036 | . . 270 . 225 474 280 47 740 Melee 1908 | . . . . . 1689 . 66 153 Ramming 10 | . . . 5 . . . 5 . Kinetic 4082 | 212 992 256 608 157 614 496 709 38 Thermal 102 | . . . . 102 . . . . Explosive 1934 | . . 270 . 123 474 280 47 740 Electromagnetic 94 | . . . . . . 76 18 . Impact . | . . . . . . . . . Slashing 1908 | . . . . . 1689 . 66 153 Piercing . | . . . . . . . . . Highest Corruption 7 | . . . 3 3 3 . . 7 Average Corruption 2 | . . . 1 3 2 . . 5 Corruption Purged 7 | . . . . . 3 . . 4 Effects 83 | . . . 24 16 42 . . 1 Message Errors 27 | . . . 7 4 16 . . . Matter Fused 14 | . . . 2 4 8 . . . Heat Flow Errors 8 | . . . 1 3 3 . . 1 Energy Discharges 10 | . . . 4 2 4 . . . Data Loss (minor) 16 | . . . 8 3 5 . . . Targeting Errors 7 | . . . 1 . 6 . . . Weapon Failures 1 | . . . 1 . . . . . Overload Shots . | . . . . . . . . . Overflow Damage 127 | . . . . . 115 . 3 9 Projectiles . | . . . . . . . . . Explosions . | . . . . . . . . . Melee 127 | . . . . . 115 . 3 9 Knockbacks . | . . . . . . . . . Impact . | . . . . . . . . . Kinetic . | . . . . . . . . . Secondary . | . . . . . . . . . Self-Inflicted Damage 28 | . . . . . 7 . 21 . Shots 2 | . . . . . 1 . 1 . Rammed 2 | . . . 1 . . . 1 . Targets Rammed 2 | . . . 1 . . . 1 . Kicked . | . . . . . . . . . Crushed . | . . . . . . . . . Highest Temperature 402 | . 7 10 266 261 320 96 402 237 Average Temperature 108 | . 2 5 88 110 136 24 143 67 Received Heat Transfer 969 | . 237 102 54 21 . 126 270 159 Effects 6 | . . . . . . . 4 2 Shutdowns 1 | . . . . . . . 1 . Interference 3 | . . . . . . . 1 2 Matter Decay 1 | . . . . . . . 1 . Damage (minor) 1 | . . . . . . . 1 . Siege Activations . | . . . . . . . . . Robots Corrupted . | . . . . . . . . . Combat Hostiles . | . . . . . . . . . Parts Fried 1 | . . . . . . 1 . . Impact Corruptions . | . . . . . . . . . Robots Melted . | . . . . . . . . . Combat Hostiles . | . . . . . . . . . Parts Melted . | . . . . . . . . . Heat Transferred 100 | . . . . 100 . . . . Parts Sabotaged . | . . . . . . . . . Parts Stolen . | . . . . . . . . . Parts Stripped . | . . . . . . . . . Power Chain Reactions . | . . . . . . . . . Missiles Intercepted . | . . . . . . . . . Alert | -11 -10 -10 -9 -9 -9 -8 -8 -7 ------- Run | Scr Mat Min Mat Min Exi Min Mat Fac Peak Influence 319 | 25 203 150 319 216 . 153 258 272 Initial 74 | . 16 5 . 30 . . 59 74 Average 91 | 8 67 18 136 88 . 47 145 133 Maximum Alert Level 1 | . 1 . 1 1 . . 1 1 Low Security (%) 83 | 100 99 100 65 74 . 100 79 69 Level 1 16 | . . . 34 25 . . 20 30 Level 2 . | . . . . . . . . . Level 3 . | . . . . . . . . . Level 4 . | . . . . . . . . . Level 5 . | . . . . . . . . . High Security . | . . . . . . . . . Max Security . | . . . . . . . . . Squads Dispatched 11 | . 2 2 3 . . 1 1 2 Investigation 7 | . 1 1 2 . . 1 1 1 Extermination . | . . . . . . . . . Reinforcement 3 | . 1 . 1 . . . . 1 Assault 1 | . . 1 . . . . . . Garrison . | . . . . . . . . . Intercept . | . . . . . . . . . Construction Impeded . | . . . . . . . . . Haulers Reinforced . | . . . . . . . . . Stealth | -11 -10 -10 -9 -9 -9 -8 -8 -7 --------- Run | Scr Mat Min Mat Min Exi Min Mat Fac Distress Signals 6 | . . . 4 . . . 2 . Communications Jammed . | . . . . . . . . . Distress Signals . | . . . . . . . . . Times Spotted 128 | . 18 7 35 8 27 12 12 9 Peak Tracking Total 9 | . 2 4 6 4 9 4 4 5 Tactical Retreats 13 | . . . 2 . 7 4 . . Traps | -11 -10 -10 -9 -9 -9 -8 -8 -7 ------- Run | Scr Mat Min Mat Min Exi Min Mat Fac Traps Triggered 4 | . . . 3 . . . . 1 Indirectly . | . . . . . . . . . Trap Hack Attempts . | . . . . . . . . . Triggered . | . . . . . . . . . Disarmed . | . . . . . . . . . Reprogrammed . | . . . . . . . . . Reused . | . . . . . . . . . Traps Extracted . | . . . . . . . . . Installed . | . . . . . . . . . Triggered . | . . . . . . . . . Exploded 3 | . . . . . 3 . . . Machines | -11 -10 -10 -9 -9 -9 -8 -8 -7 ---------- Run | Scr Mat Min Mat Min Exi Min Mat Fac Machines Disabled 13 | . . . . 4 9 . . . Max in Single Turn 4 | . . . . 4 2 . . . Garrison Access 1 | . . . . . . . . 1 Machines Sabotaged . | . . . . . . . . . Garrisons Compromised . | . . . . . . . . . Overloaded Fab Kills . | . . . . . . . . . Fab Network Shutdowns . | . . . . . . . . . Hacking | -11 -10 -10 -9 -9 -9 -8 -8 -7 --------- Run | Scr Mat Min Mat Min Exi Min Mat Fac Machines Accessed 35 | . 10 1 16 . 2 1 2 3 Terminals 20 | . 7 . 10 . . 1 1 1 Fabricators . | . . . . . . . . . Repair Stations 3 | . 1 . 2 . . . . . Recycling Units 4 | . 2 . 2 . . . . . Scanalyzers 4 | . . . 2 . . . 1 1 Garrison Access 1 | . . . . . . . . 1 Total Hacks 124 | . 42 1 55 . 2 3 10 11 Successful 79 | . 25 1 36 . 2 2 7 6 Failed 44 | . 17 . 18 . . 1 3 5 Catastrophic 3 | . 1 . 1 . . . . 1 Database Lockouts 1 | . . . 1 . . . . . Manual 71 | . 24 . 30 . 1 4 6 6 Terminals 71 | . 23 . 35 . . 3 6 4 Fabricators . | . . . . . . . . . Repair Stations 19 | . 12 . 7 . . . . . Recycling Units 17 | . 7 . 10 . . . . . Scanalyzers 11 | . . . 3 . . . 4 4 Garrison Access 3 | . . . . . . . . 3 Terminal Hacks 26 | . 4 1 15 . 2 2 1 1 Record 1 | . . . . . 1 . . . Part Schematic 1 | . 1 . . . . . . . Robot Analysis 8 | . 3 . 3 . . 2 . . Prototype ID Bank 2 | . . . 2 . . . . . Open Door 1 | . . 1 . . . . . . Terminal Index 3 | . . . 1 . . . 1 1 Unreport Threat 1 | . . . 1 . . . . . Locate Traps 2 | . . . 2 . . . . . Dispatch Records 1 | . . . 1 . . . . . Hauler Manifests 2 | . . . 2 . . . . . Zone Layout 3 | . . . 3 . . . . . EX-Prototype ID Bank 1 | . . . . . 1 . . . Fabricator Hacks . | . . . . . . . . . Repair Station Hacks 18 | . 12 . 6 . . . . . Scan Component 9 | . 6 . 3 . . . . . Repair 9 | . 6 . 3 . . . . . Recycling Unit Hacks 3 | . 1 . 2 . . . . . Retrieve Components 3 | . 1 . 2 . . . . . Scanalyzer 9 | . . . 3 . . . 4 2 Insert Component 5 | . . . 2 . . . 2 1 Analyze 4 | . . . 1 . . . 2 1 Garrison Access Hacks . | . . . . . . . . . Unauthorized Hacks 23 | . 8 . 10 . . . 2 3 Terminals 18 | . 7 . 7 . . . 2 2 Track 1 | . . . 1 . . . . . Assimilate 1 | . . . 1 . . . . . Botnet 12 | . 6 . 4 . . . 1 1 Operators 4 | . 1 . 1 . . . 1 1 Fabricators . | . . . . . . . . . Repair Stations . | . . . . . . . . . Recycling Units 4 | . 1 . 3 . . . . . Reject 1 | . . . 1 . . . . . Mask 2 | . 1 . 1 . . . . . Tunnel 1 | . . . 1 . . . . . Scanalyzers . | . . . . . . . . . Garrison Access 1 | . . . . . . . . 1 Jam 1 | . . . . . . . . 1 Data Cores Recovered . | . . . . . . . . . Used . | . . . . . . . . . Hacking Detections 28 | . 10 . 12 . . 1 2 3 Full Trace Events 9 | . 4 . 3 . . 1 1 . Feedback Events 2 | . . . 2 . . . . . Corruption 2 | . . . 2 . . . . . Feedback Blocked . | . . . . . . . . . Robot Schematics Acquired . | . . . . . . . . . Robots Built . | . . . . . . . . . Matter . | . . . . . . . . . Time . | . . . . . . . . . Total Robot Build Rating . | . . . . . . . . . Part Schematics Acquired 5 | . 1 . 1 . . . 2 1 Parts Built . | . . . . . . . . . Matter . | . . . . . . . . . Time . | . . . . . . . . . Total Part Build Rating . | . . . . . . . . . Parts Repaired 9 | . 6 . 3 . . . . . Time 258 | . 168 . 90 . . . . . Parts Recycled . | . . . . . . . . . Recycled Matter . | . . . . . . . . . Retrieved Matter . | . . . . . . . . . Retrieved Components 19 | . 1 . 18 . . . . . Parts Scanalyzed 4 | . . . 1 . . . 2 1 Part Schematics Acquired 4 | . . . 1 . . . 2 1 Parts Damaged . | . . . . . . . . . Bothacking | -11 -10 -10 -9 -9 -9 -8 -8 -7 ------------ Run | Scr Mat Min Mat Min Exi Min Mat Fac Used RIF Installer . | . . . . . . . . . Robots Hacked . | . . . . . . . . . Non-combat . | . . . . . . . . . Combat . | . . . . . . . . . Robot Hacks Applied . | . . . . . . . . . Relay Couplers Released . | . . . . . . . . . Robots Rewired . | . . . . . . . . . Allies Hacked . | . . . . . . . . . Hacks Repelled . | . . . . . . . . . Allies | -11 -10 -10 -9 -9 -9 -8 -8 -7 -------- Run | Scr Mat Min Mat Min Exi Min Mat Fac Total Allies 3 | . . 3 . . . . . . Largest Group 3 | . . 3 2 1 . . . . Highest-Rated Group 76 | . . 76 62 31 . . . . Highest-Rated Ally 31 | . . 31 31 31 . . . . Total Orders 12 | . . . . . . . 3 9 EXPLORE 7 | . . . . . . . 2 5 RETURN 5 | . . . . . . . 1 4 Ally Attacks 51 | . . 3 44 4 . . . . Total Damage 756 | . . 20 693 43 . . . . Kills 19 | . . 1 17 1 . . . . Allies Corrupted . | . . . . . . . . . Allies Melted . | . . . . . . . . . Intel | -11 -10 -10 -9 -9 -9 -8 -8 -7 ------- Run | Scr Mat Min Mat Min Exi Min Mat Fac Robot Analysis Total 8 | . 3 . 3 . . 2 . . Derelict Logs Recovered 2 | . . 1 . 1 . . . . Drone Launches 5 | . . . . . . . 2 3 Drone Recoveries 5 | . . . . . . . 2 3 Exploration | -11 -10 -10 -9 -9 -9 -8 -8 -7 ------------- Run | Scr Mat Min Mat Min Exi Min Mat Fac Turns Passed 11005 | 88 1349 1018 2114 977 2920 1115 740 684 Spaces Moved 5138 | 32 626 558 1009 506 1318 510 284 295 Core 13 | 13 . . . . . . . . Treads 5067 | 19 626 558 1009 506 1318 510 226 295 Legs 58 | . . . . . . . 58 . Wheels . | . . . . . . . . . Hover . | . . . . . . . . . Flight . | . . . . . . . . . Fastest Speed 50 | 50 160 160 160 180 160 200 150 192 Average Speed 180 | 123 160 160 177 180 189 200 190 192 Slowest Speed 260 | 160 160 160 180 180 200 220 260 192 Overloaded Moves . | . . . . . . . . . Propulsion Burnouts . | . . . . . . . . . Robots Hopped . | . . . . . . . . . Cave-ins Triggered 1 | . . . . . . . . 1 Exploration Rate (%) 71 | 3 96 97 93 98 91 98 34 33 Regions Visited 8 Branch Regions 4 Pre-discovered Areas 3 | . . . 1 1 1 . . . Known Exits Taken 7 | . 1 1 1 1 1 1 1 . Unknown Exits Taken 1 | 1 . . . . . . . . Scrap Searched 4 | . . 1 . 2 . 1 . . Spaces Dug 38 | . . . 1 . . . 26 11 Terrain Destroyed 109 | . . 26 1 1 10 22 26 23 Melee 11 | . . . . . . . . 11 Projectile 1 | . . . 1 . . . . . AOE 97 | . . 26 . 1 10 22 26 12 Terrain Rammed . | . . . . . . . . . Walls Destroyed . | . . . . . . . . . Machines Disabled . | . . . . . . . . . Actions | -11 -10 -10 -9 -9 -9 -8 -8 -7 --------- Run | Scr Mat Min Mat Min Exi Min Mat Fac Total 6311 | 53 874 659 1276 557 1553 551 415 373 Wait 611 | . 169 76 190 42 42 6 51 35 Move 5130 | 31 625 557 1008 505 1317 509 283 295 Hop . | . . . . . . . . . Pick Up 71 | 5 13 3 17 . 28 . 2 3 Fast Attach 30 | 3 2 1 5 . 7 1 10 1 Attach 28 | 1 5 . 1 . 10 . 7 4 Detach 12 | . 1 . . . 7 . 4 . Swap 51 | . 3 4 6 2 12 5 11 8 Drop 62 | . 5 4 14 . 26 2 10 1 Fire 239 | 13 51 14 34 8 47 28 34 10 Melee 75 | . . . . . 57 . 2 16 Ram . | . . . . . . . . . Kick . | . . . . . . . . . Crush 2 | . . . 1 . . . 1 . Escape Stasis . | . . . . . . . . . Rewire . | . . . . . . . . . Trap . | . . . . . . . . . Miscellaneous . | . . . . . . . . . Route ------- -11/Scrapyard -10/Materials (discovered 5 exits: *Mat x3 / *Min x2) -10/Mines (discovered 2 exits: *Mat x2) -9/Materials (discovered 6 exits: *Mat x3 / *Min / *Sto x2) -9/Mines (discovered 3 exits: *Mat x2 / *Exi) -9/Exiles (discovered 2 exits: *Min x2) -8/Mines (discovered 2 exits: *Mat x2) -8/Materials -7/Factory (discovered 1 exit: *Fac) History --------- Turn | Location | Event 15 | -11/Scrapyard | Discovered new exit (range 15) 89 | -11/Scrapyard | Entered Materials 222 | -10/Materials | Discovered new exit (range 15) 246 | -10/Materials | Identified exit to Materials 302 | -10/Materials | Discovered new exit (range 6) 308 | -10/Materials | Identified exit to Mines 312 | -10/Materials | Build established: Mutant 804 | -10/Materials | Discovered exit to Materials (range 4) 959 | -10/Materials | Repaired Mining Claw 986 | -10/Materials | Repaired Assault Rifle 1014 | -10/Materials | Repaired Assault Rifle 1041 | -10/Materials | Repaired Lgt. Treads 1069 | -10/Materials | Repaired Lgt. Treads 1108 | -10/Materials | Repaired Lgt. Nuclear Core 1214 | -10/Materials | Discovered exit to Materials (range 14) 1379 | -10/Materials | Discovered exit to Mines (range 7) 1438 | -10/Materials | Entered Mines 1465 | -10/Mines | Met a Derelict shopkeep closing up shop 1723 | -10/Mines | Met a Derelict testing a Signal Generator 1726 | -10/Mines | Discovered exit to Materials (range 10) 1926 | -10/Mines | Learned Materials non-interactive machine intel 2255 | -10/Mines | Discovered exit to Materials (range 6) 2351 | -10/Mines | Joined a pair of Derelicts in attacking an 0b10 outpost 2456 | -10/Mines | Entered Materials 2456 | -9/Materials | Accompanied by 2 allies 2456 | -9/Materials | Evolved 2 slots: Utility x2 2457 | -9/Materials | Loaded intel: 47 non-interactive machine locations 2461 | -9/Materials | Led the pair of lost Derelicts to an unsafe place 2512 | -9/Materials | Discovered new exit (range 5) 2519 | -9/Materials | Identified exit to Storage 2696 | -9/Materials | Repaired Nuclear Core 2714 | -9/Materials | Central database locked down 2763 | -9/Materials | Met 8R-AWN 2803 | -9/Materials | Discovered new exit (range 8) 2819 | -9/Materials | Identified exit to Mines 2889 | -9/Materials | Repaired Assault Rifle 2916 | -9/Materials | Repaired Lgt. Treads 2980 | -9/Materials | Discovered new exit (range 7) 2989 | -9/Materials | Identified exit to Materials 3310 | -9/Materials | Discovered exit to Materials (range 7) 3981 | -9/Materials | Discovered exit to Storage (range 5) 4164 | -9/Materials | Build established: Scavenger-Mutant 4253 | -9/Materials | Discovered exit to Materials (range 16) 4570 | -9/Materials | Entered Mines 4570 | -9/Mines | Accompanied by 1 ally 4572 | -9/Mines | Followed 8R-AWN into the Mines 4682 | -9/Mines | Discovered exit to Materials (range 5) 4722 | -9/Mines | Discovered exit to Materials (range 8) 4731 | -9/Mines | Received a Rocket Launcher from a helpful Derelict 5125 | -9/Mines | Assembled infested the area 5130 | -9/Mines | Assisted by a Guerilla fighting off Assembled 5313 | -9/Mines | Learned location of Zion (-6) 5540 | -9/Mines | Discovered new exit (range 5) 5546 | -9/Mines | Identified exit to Exiles 5547 | -9/Mines | Entered Exiles 5573 | -9/Exiles | Discovered new exit (range 15) 5596 | -9/Exiles | Identified exit to Mines 5634 | -9/Exiles | Welcomed by 8R-AWN 5663 | -9/Exiles | Met EX-HEX 5740 | -9/Exiles | Met EX-DEC 5798 | -9/Exiles | Met EX-BIN 5823 | -9/Exiles | Aligned with FarCom system 5825 | -9/Exiles | Given EX-Vault access code 5866 | -9/Exiles | Opened EX-Vault 5909 | -9/Exiles | Warned to stay clear of 0b10 Research branches 6210 | -9/Exiles | Learned about 8R-AWN's background 6439 | -9/Exiles | Found Flying Fortress v7 6442 | -9/Exiles | Found Prototype Device 6617 | -9/Exiles | Discovered exit to Mines (range 10) 6762 | -9/Exiles | Attacked by the Exiles 6905 | -9/Exiles | Identified Supersonic Drone Bay 7000 | -9/Exiles | Destroyed 8R-AWN 7005 | -9/Exiles | Found Prototype Ballistic Gun 7008 | -9/Exiles | Found Prototype Ballistic Gun 7013 | -9/Exiles | Found AS-neutralizer No. 17b 7244 | -9/Exiles | Destroyed EX-BIN 7329 | -9/Exiles | Core integrity fell below 50% 7360 | -9/Exiles | Destroyed EX-DEC 7390 | -9/Exiles | Destroyed EX-HEX 7465 | -9/Exiles | Found Prototype Device 7475 | -9/Exiles | Identified System Purifier 7476 | -9/Exiles | Found Deploy-a-Sentry 7494 | -9/Exiles | Identified 8R-AWN's Boregun (x2) 8144 | -9/Exiles | Found Latent Energy Streamer 8300 | -9/Exiles | Build established: Hauler-Mutant 8467 | -9/Exiles | Stole four prototypes: Flying Fortress v7, Supersonic Drone Bay, Latent Energy Streamer, Deploy-a-Sentry 8467 | -9/Exiles | Entered Mines 8595 | -8/Mines | Discovered exit to Materials (range 10) 8858 | -8/Mines | Discovered exit to Materials (range 16) 9582 | -8/Mines | Entered Materials 9582 | -8/Materials | Evolved 2 slots: Utility x2 9653 | -8/Materials | Lost 3 parts (2n1w) 10212 | -8/Materials | Discovered new exit (range 38) 10320 | -8/Materials | Identified exit to Factory 10322 | -8/Materials | Entered Factory 10322 | -7/Factory | Evolved 2 slots: Utility x2 10351 | -7/Factory | Discovered new exit (range 26) 10417 | -7/Factory | Identified exit to Factory 10907 | -7/Factory | Crushed by falling debris 11006 | -7/Factory | Self-destructed Last Messages --------------- 10937_ Adv. Sensor Array temporarily disabled. 10937_ U-05 Engineer builds a Wall. 10958_ System Purifier purges 1% of system corruption (5%). 10962_ G-47 Trooper destroyed. 10964_ O-24 Administrator: "IFF HANDSHAKE FAILED. SECURING TERMINAL." 10969_ ALERT: Hostiles spotted, dispatching reinforcements to Terminal F002. 10971_ System Purifier purges 1% of system corruption (4%). 10978_ System Purifier purges 1% of system corruption (3%). 10978_ Destroyed Adv. Heat Sink. 10980_ Lyr. Light Armor Plating destroyed. 10983_ Destroyed Hvy. Laser. 10985_ U-05 Engineer lays Concrete. 10992_ U-05 Engineer builds a Wall. 10996_ U-05 Engineer builds a Door. 11000_ U-05 Engineer lays Concrete. 11004_ Hvy. Assault Rifle destroyed. 11004_ Lgt. Treads destroyed. 11004_ U-05 Engineer lays Concrete. 11005_ System Purifier destroyed. 11005_ U-05 Engineer builds a Wall. Map ----- +----------------------------------------------------+ | | | | | | | | | | | #????????????????????????????????????????????????? | | ###############??????????????????????????????????? | | # "#??????????????????????????????????? | | # ##???????????#??????????????????????? | | # #???????????# #?????????????????????? | | # """ """ #???????????! ?????????????????????? | | # """ """ #???????????!? #????????????????????? | | + """ """ #???????????! #????????????????????? | | # #??????????? !#????????????????????? | | # """ """ #??????????? +????????????????????? | | # """ """ #??????????? #????????????????????? | | # """ """ #????????? "" #????????????????????? | | # #????????? "" #????????????????????? | | # #??????????"T #????????????????????? | | #######+##############??"" ####?##+#####????????? | | ^"""" ## #???" !## # ????????? | | """""" ## " " " #??? #?????????? | | ""F ""^ ## " " " #####u# #?????????? | | """ ## " " " + #?????????? | | ## " " " # % #?????????? | | ## " " " # @ #?????????? | | ## " " " + % #?????????? | | """ """ ## " " " ## #?????????? | | """ """ ## " " " ## #?????????? | | """ """ /## " " "?## s?????????? | | ## ## s ?????????? | | "# ## """ """ ??????????? | | ## ## """ """???????????? | | ##### ## / ## """ """ ""????????? | | # ## ## /// ??????? | | # ## + /// """ ""????????????? | | # ##= # /// """ ""????????????? | | # ####+##### ^ """ "?????????????? | | ! # r ???????????? | | # """ """ """ ??????????? | | # """"" """ """ """???????????? | | # ""T"" """ """ ??????????????? | | ##### ????????????????? | | ????# ! ??????????????? | | ????/ // #####??????????????? | | ????#### / ####/#####??????????????????? | | ???????# #???? ?????????????????????? | | ???????# #????? ???????????????????? | | ???????#o##### #?????? ??????????????????? | | ? #??# #???# #??????? ????????????????? | +----------------------------------------------------+ Best States ------------- Heat Dissipation 34 Coolant Potential 50 Energy Generation 19 Energy Capacity 310 Matter Stores 300 Matter Capacity 300 Sight Range 16 Robot Scan Range 16 Terrain Scan Range 20 Terrain Scan Density 10 Jamming Range 16 Armor Coverage 675 Resistance: KI 20 Evasion (%) 50 Recoil Reduction 2 Offensive Hacking 10 Defensive Hacking 10 Item Schematics ----------------- Hcp. Storage Unit | -10/Materials | Hacked Lrn. Tractor Beam | -9/Materials | Scanalyzed Hacking Suite | -8/Materials | Scanalyzed Mak. Power Source | -8/Materials | Scanalyzed System Shield | -7/Factory | Scanalyzed Robot Schematics ------------------ None Fabricated ------------ Nothing Alien Tech Used ----------------- None Achievements -------------- None Challenges ------------ None Game ------ Seed MatterGravmagFlakker Manual? 0 Play Time 01:10:43 Cumulative 403.7 hours Start 2021.07.18 @ 19:55:21 End 2021.07.18 @ 21:42:20 Sessions 3 Manual Loads 0 Difficulty Rogue Special Mode None Game No. 330 Rogue 330 Adventurer 0 Explorer 0 Win Type - Total 1 Types 0/0/0/1/0/0/0/0/0 Lore% 71 Gallery% 80 Achievement% 60 Wizard Run 0 Options --------- ASCII 0 Keyboard 1 Movement Numpad Keybinds 0 Fullscreen 1 Font 12/Terminus Map View 83x54 Tactical HUD 1 Map Filters NONE Filters NONE Steam 1 RUN: 59527abb-3c8b-4329-980f-497a6e8cd2fb